fUSD/lending_fUSD_20240212
["ID","MTS","AMOUNT","RATE_DAILY","PERIOD"]
[313865216,1707756648244,-151.0,0.0003452,7]
[313865218,1707756648253,-151.0,0.0003452,7]
[313865220,1707756648263,-1000.0,0.0003452,11]
[313865222,1707756648272,-10000.0,0.00034521,2]
[313865224,1707756648281,-150.0,0.00034548,10]
[313865226,1707756648291,-2000.0,0.000346,4]
[313865228,1707756648301,-710.8,0.00034667,2]
[313865230,1707756648310,-200.0,0.000347,7]
[313865232,1707756648319,-468.97533147,0.000347,2]
[313865234,1707756648328,-1321.46,0.000347,7]
[313865236,1707756648337,-1000.0,0.00034718,7]
[313865238,1707756648347,-151.0,0.00034722,2]
[313865240,1707756648357,-250.49088,0.00034722,2]
[313865242,1707756648366,-153.95521056,0.00034727,2]
[313865244,1707756648375,-404.85,0.0003474,2]
[313865246,1707756648384,-404.85,0.0003474,2]
[313865248,1707756648393,-808.5,0.0003474,2]
[313865250,1707756648402,-404.85,0.0003474,2]
[313865252,1707756648412,-404.85,0.0003474,2]
[313865254,1707756648421,-404.85,0.0003474,2]
[313865256,1707756648430,-1820.91,0.0003474,2]
[313865258,1707756648439,-416.42,0.0003474,2]
[313865260,1707756648448,-914.46,0.0003474,2]
[313865262,1707756648458,-914.46,0.0003474,2]
[313865264,1707756648467,-404.85,0.0003474,2]
[313865266,1707756648477,-404.85,0.0003474,2]
[313865268,1707756648486,-54767.027467,0.00034794,2]
[313865270,1707756648495,-9704.949324,0.00034794,2]
[313865272,1707756648504,-1737.281242,0.000348,2]
[313865274,1707756648513,-495.99827526,0.00034825,2]
[313865276,1707756648523,-1000.0,0.00034826,7]
[313865278,1707756648532,-1000.0,0.00034826,7]
[313865280,1707756648542,-152.0,0.00034832,5]
[313865283,1707756648553,-289.2,0.0003487,2]
[313865285,1707756648564,-150.0,0.00034895,2]
[313865287,1707756648573,-9018.0041854,0.000349,4]
[313865288,1707756648582,-150.1,0.000349,2]
[313865291,1707756648591,-4342.01360015,0.000349,2]
[313865293,1707756648601,-4342.01360013,0.000349,2]
[313865295,1707756648610,-4342.01360013,0.000349,2]
[313865297,1707756648619,-4342.01360013,0.000349,2]
[313865299,1707756648629,-4342.01360013,0.000349,2]
[313865300,1707756648638,-151.0,0.000349,7]
[313865302,1707756648647,-214.238353,0.000349,7]
[313865304,1707756648656,-214.238353,0.000349,7]
[313865306,1707756648666,-151.0,0.000349,7]
[313865308,1707756648675,-151.0,0.000349,7]
[313865311,1707756648684,-151.0,0.000349,7]
[313865313,1707756648694,-415.737418,0.000349,7]
[313865314,1707756648703,-415.737418,0.000349,7]
[313865316,1707756648712,-151.0,0.000349,7]
[313865318,1707756648721,-151.0,0.000349,7]
[313865320,1707756648730,-151.0,0.000349,7]
[313865322,1707756648739,-151.0,0.000349,7]
[313865325,1707756648750,-151.0,0.000349,7]
[313865326,1707756648762,-151.0,0.000349,7]
[313865329,1707756648771,-151.0,0.000349,7]
[313865331,1707756648781,-151.0,0.000349,7]
[313865333,1707756648791,-151.0,0.000349,7]
[313865335,1707756648802,-151.0,0.000349,7]
[313865337,1707756648811,-151.0,0.000349,5]
[313865339,1707756648820,-1624.5,0.000349,7]
[313865341,1707756648830,-1624.5,0.000349,7]
[313865342,1707756648839,-347.317455,0.000349,7]
[313865343,1707756648850,-347.317455,0.000349,7]
[313865344,1707756648860,-237.612106,0.000349,7]
[313865345,1707756648869,-151.0,0.000349,7]
[313865346,1707756648879,-237.612106,0.000349,7]
[313865347,1707756648888,-246.073602,0.000349,7]
[313865348,1707756648898,-246.073602,0.000349,7]
[313865349,1707756648908,-237.875454,0.000349,7]
[313865350,1707756648918,-73022.703289,0.00034931,2]
[313865351,1707756648927,-12939.932432,0.00034931,2]
[313865352,1707756648937,-151.0,0.00034931,7]
[313865353,1707756648947,-254.461504,0.00034931,7]
[313865354,1707756648957,-151.0,0.00034931,7]
[313865355,1707756648966,-338.348826,0.00034931,7]
[313865356,1707756648976,-338.348826,0.00034931,7]
[313865357,1707756648985,-151.0,0.00034931,7]
[313865358,1707756648994,-162.690748,0.00034931,7]
[313865359,1707756649003,-599.54502,0.00034931,7]
[313865360,1707756649013,-599.54502,0.00034931,7]
[313865361,1707756649074,-151.0,0.00034931,7]
[313865362,1707756649084,-7018.28434674,0.0003495,7]
[313865363,1707756649094,-400.0,0.0003497,2]
[313865364,1707756649103,-971.00462193,0.0003498,120]
[313865365,1707756649113,-500.0,0.00034986,10]
[313865366,1707756649122,-150.0,0.00034999,2]
[313865367,1707756649131,-150.0,0.00034999,2]
[313865368,1707756649140,-150.0,0.00034999,2]
[313865369,1707756649149,-50000.0,0.00035,5]
[313865370,1707756649159,-1819.19,0.00035,5]
[313865371,1707756649168,-155.0,0.00035,4]
[313865372,1707756649177,-15850.56192056,0.00035,7]
[313865373,1707756649186,-155.0,0.00035,2]
[313865374,1707756649195,-1205.66273897,0.00035,2]
[313865375,1707756649205,-451.06831332,0.00035,4]
[313865376,1707756649214,-858.76881509,0.00035,4]
[313865377,1707756649223,-1110.52801494,0.00035,14]
[313865378,1707756649233,-391.18935678,0.00035,4]
[313865379,1707756649243,-161.49149496,0.00035,2]
[313865380,1707756649252,-20000.0,0.00035,3]
[313865381,1707756649261,-1268.63861743,0.00035,4]
[313865383,1707756649270,-300.0,0.00035,36]
[313865385,1707756649279,-7267.0,0.00035,2]
[313865387,1707756649288,-150.0,0.00035,5]
[313865388,1707756649298,-2766.11046229,0.00035,15]
[313865390,1707756649307,-2316.374989,0.00035,2]
[313865391,1707756649317,-2000.0,0.00035,2]
[313865392,1707756649326,-1311.82743712,0.00035,2]
[313865393,1707756649336,-151.0,0.00035,7]
[313865394,1707756649345,-12273.81442218,0.00035,2]
[313865395,1707756649354,-153.79,0.00035,2]
[313865396,1707756649363,-153.79,0.00035,2]
[313865397,1707756649372,-153.79,0.00035,2]
[313865398,1707756649382,-153.79,0.00035,2]
[313865399,1707756649391,-153.79,0.00035,2]
[313865400,1707756649401,-153.79,0.00035,2]
[313865401,1707756649410,-153.79,0.00035,2]
[313865402,1707756649419,-153.79,0.00035,2]
[313865403,1707756649428,-153.79,0.00035,2]
[313865404,1707756649438,-153.79,0.00035,2]
[313865405,1707756649447,-153.79,0.00035,2]
[313865406,1707756649457,-153.79,0.00035,2]
[313865407,1707756649466,-597.91749212,0.00035,2]
[313865408,1707756649475,-386.142924,0.00035,7]
[313865409,1707756649485,-386.142924,0.00035,7]
[313865410,1707756649493,-1406.683856,0.00035,7]
[313865411,1707756649503,-1406.683856,0.00035,7]
[313865412,1707756649512,-22694.90613484,0.00035,3]
[313865413,1707756649521,-152.0,0.00035012,2]
[313865414,1707756649530,-354.0,0.00035012,2]
[313865415,1707756649539,-87159.9376358,0.00035044,2]
[313865416,1707756649548,-91278.379112,0.00035068,2]
[313865417,1707756649557,-16174.91554,0.00035068,2]
[313865418,1707756649567,-153.95521056,0.00035072,2]
[313865419,1707756649576,-279.64,0.00035075,2]
[313865420,1707756649586,-90279.6319399,0.0003509,2]
[313865421,1707756649595,-12273.81442218,0.0003509,2]
[313865422,1707756649604,-1321.46,0.000351,7]
[313865423,1707756649613,-1331.38,0.000351,2]
[313865424,1707756649623,-1331.38,0.000351,2]
[313865425,1707756649632,-1331.38,0.000351,2]
[313865426,1707756649642,-1331.38,0.000351,2]
[313865427,1707756649651,-1331.38,0.000351,2]
[313865428,1707756649660,-1331.38,0.000351,2]
[313865429,1707756649669,-1331.38,0.000351,2]
[313865430,1707756649679,-1331.38,0.000351,2]
[313865431,1707756649688,-1331.38,0.000351,2]
[313865432,1707756649697,-1331.38,0.000351,2]
[313865433,1707756649706,-1331.38,0.000351,2]
[313865434,1707756649716,-1331.38,0.000351,2]
[313865435,1707756649725,-1331.38,0.000351,2]
[313865436,1707756649735,-1331.38,0.000351,2]
[313865437,1707756649744,-1331.38,0.000351,2]
[313865438,1707756649754,-1331.38,0.000351,2]
[313865439,1707756649766,-1331.38,0.000351,2]
[313865440,1707756649777,-1331.38,0.000351,2]
[313865441,1707756649787,-1331.38,0.000351,2]
[313865442,1707756649798,-1331.38,0.000351,2]
[313865443,1707756649808,-290.214752,0.000351,7]
[313865444,1707756649817,-290.214752,0.000351,7]
[313865445,1707756649827,-5000.9,0.000351,2]
[313865446,1707756649837,-1917.04998468,0.00035107,2]
[313865447,1707756649847,-1000.0,0.00035109,7]
[313865448,1707756649857,-1000.0,0.00035109,7]
[313865449,1707756649867,-1000.0,0.00035109,7]
[313865450,1707756649876,-1000.0,0.00035109,7]
[313865451,1707756649886,-1000.0,0.00035109,7]
[313865452,1707756649895,-207.0,0.0003511,2]
[313865453,1707756649904,-200.0,0.000352,8]
[313865454,1707756649913,-459.78330157,0.00035242,7]
[313865455,1707756649923,-150.000004,0.00035258,2]
[313865456,1707756649933,-150.0,0.00035258,2]
[313865457,1707756649943,-300.88,0.0003527,2]
[313865458,1707756649952,-302.0,0.00035306,4]
[313865459,1707756649962,-127789.730757,0.00035342,2]
[313865460,1707756649972,-22644.881756,0.00035342,2]
[313865461,1707756649981,-151.0,0.00035342,7]
[313865462,1707756649990,-151.0,0.00035342,7]
[313865463,1707756649999,-283.637748,0.00035342,7]
[313865464,1707756650008,-151.0,0.00035342,7]
[313865465,1707756650017,-151.0,0.00035342,7]
[313865466,1707756650027,-180.765941,0.00035342,7]
[313865467,1707756650036,-151.0,0.00035342,7]
[313865468,1707756650045,-180.765941,0.00035342,7]
[313865469,1707756650056,-151.0,0.00035342,7]
[313865470,1707756650066,-253.873612,0.00035342,7]
[313865471,1707756650075,-1000.0,0.00035342,13]
[313865472,1707756650084,-153.95521056,0.00035417,2]
[313865473,1707756650093,-662.99462925,0.000355,2]
[313865474,1707756650102,-1321.46,0.000355,7]
[313865475,1707756650111,-500.0,0.00035534,10]
[313865476,1707756650120,-150.0,0.00035536,30]
[313865477,1707756650129,-150.0,0.00035536,30]
[313865478,1707756650138,-150.0,0.00035536,30]
[313865479,1707756650148,-150.0,0.00035536,30]
[313865480,1707756650157,-150.0,0.00035536,30]
[313865481,1707756650167,-150.0,0.00035536,30]
[313865482,1707756650176,-150.0,0.00035536,30]
[313865483,1707756650185,-150.0,0.00035536,30]
[313865484,1707756650195,-150.0,0.00035536,30]
[313865485,1707756650204,-150.0,0.00035536,30]
[313865486,1707756650213,-150.0,0.00035536,30]
[313865487,1707756650223,-150.0,0.00035536,30]
[313865488,1707756650232,-150.0,0.00035536,30]
[313865489,1707756650242,-150.0,0.00035536,30]
[313865490,1707756650252,-150.0,0.00035536,30]
[313865491,1707756650261,-16965.30750344,0.00035537,10]
[313865492,1707756650270,-73797.73007401,0.00035537,10]
[313865493,1707756650279,-50000.0,0.00035537,10]
[313865494,1707756650289,-40082.77928199,0.00035537,10]
[313865495,1707756650299,-179.655654,0.00035537,7]
[313865496,1707756650310,-45695.98016091,0.00035537,10]
[313865497,1707756650319,-151.0,0.00035537,7]
[313865498,1707756650328,-214.238353,0.00035537,7]
[313865499,1707756650336,-214.238353,0.00035537,7]
[313865500,1707756650346,-151.0,0.00035537,7]
[313865501,1707756650355,-151.0,0.00035537,7]
[313865502,1707756650365,-151.0,0.00035537,7]
[313865503,1707756650375,-415.737418,0.00035537,7]
[313865504,1707756650385,-30402.69549147,0.00035537,10]
[313865505,1707756650395,-415.737418,0.00035537,7]
[313865506,1707756650404,-230.234228,0.00035537,7]
[313865507,1707756650415,-151.0,0.00035537,7]
[313865508,1707756650427,-151.0,0.00035537,7]
[313865509,1707756650437,-151.0,0.00035537,7]
[313865510,1707756650446,-151.0,0.00035537,7]
[313865511,1707756650456,-151.0,0.00035537,7]
[313865512,1707756650465,-151.0,0.00035537,7]
[313865513,1707756650476,-151.0,0.00035537,7]
[313865514,1707756650485,-152.300074,0.00035537,7]
[313865515,1707756650495,-158.544031,0.00035537,5]
[313865516,1707756650505,-1624.5,0.00035537,7]
[313865517,1707756650514,-1624.5,0.00035537,7]
[313865518,1707756650524,-347.317455,0.00035537,7]
[313865519,1707756650534,-347.317455,0.00035537,7]
[313865520,1707756650545,-237.612106,0.00035537,7]
[313865521,1707756650556,-151.0,0.00035537,7]
[313865522,1707756650566,-237.612106,0.00035537,7]
[313865523,1707756650579,-246.073602,0.00035537,7]
[313865524,1707756650589,-246.073602,0.00035537,7]
[313865525,1707756650599,-258.955372,0.00035537,7]
[313865526,1707756650609,-338.348826,0.00035537,7]
[313865527,1707756650618,-338.348826,0.00035537,7]
[313865528,1707756650627,-151.0,0.00035537,7]
[313865529,1707756650637,-599.54502,0.00035537,7]
[313865530,1707756650647,-599.54502,0.00035537,7]
[313865531,1707756650657,-151.0,0.00035537,7]
[313865532,1707756650667,-386.142924,0.00035537,7]
[313865533,1707756650677,-386.142924,0.00035537,7]
[313865534,1707756650686,-1406.683856,0.00035537,7]
[313865535,1707756650696,-1406.683856,0.00035537,7]
[313865536,1707756650705,-421.94,0.00035562,2]
[313865537,1707756650715,-421.94,0.00035562,2]
[313865538,1707756650724,-151.0,0.00035568,7]
[313865539,1707756650733,-1231.0,0.00035575,2]
[313865540,1707756650743,-1253.0,0.00035575,2]
[313865541,1707756650754,-150.0,0.00035586,30]
[313865542,1707756650763,-150.0,0.00035586,30]
[313865543,1707756650773,-150.0,0.00035586,30]
[313865544,1707756650782,-150.0,0.00035586,30]
[313865545,1707756650791,-150.0,0.00035586,30]
[313865546,1707756650802,-150.0,0.00035586,30]
[313865547,1707756650811,-150.0,0.00035586,30]
[313865548,1707756650820,-150.0,0.00035586,30]
[313865549,1707756650829,-150.0,0.00035586,30]
[313865550,1707756650839,-150.0,0.00035586,30]
[313865551,1707756650851,-150.0,0.00035586,30]
[313865552,1707756650860,-150.0,0.00035586,30]
[313865553,1707756650870,-150.0,0.00035586,30]
[313865554,1707756650880,-150.0,0.00035586,30]
[313865555,1707756650889,-150.0,0.00035586,30]
[313865556,1707756650898,-2895.468736,0.000356,2]
[313865557,1707756650907,-2000.0,0.000356,2]
[313865558,1707756650917,-7018.28434674,0.000356,8]
[313865559,1707756650926,-8000.0,0.000356,2]
[313865560,1707756650936,-150.0,0.0003561,30]
[313865561,1707756650946,-150.0,0.0003561,30]
[313865562,1707756650955,-150.0,0.0003561,30]
[313865563,1707756650964,-150.0,0.0003561,30]
[313865564,1707756650974,-150.0,0.0003561,30]
[313865565,1707756650983,-150.0,0.0003561,30]
[313865566,1707756650994,-150.0,0.0003561,30]
[313865567,1707756651003,-150.0,0.0003561,30]
[313865568,1707756651013,-150.0,0.0003561,30]
[313865569,1707756651022,-150.0,0.0003561,30]
[313865570,1707756651031,-150.0,0.0003561,30]
[313865571,1707756651041,-150.0,0.0003561,30]
[313865572,1707756651051,-150.0,0.0003561,30]
[313865573,1707756651061,-150.0,0.0003561,30]
[313865574,1707756651070,-150.0,0.0003561,30]
[313865575,1707756651079,-150.0,0.00035615,30]
[313865576,1707756651089,-150.0,0.00035615,30]
[313865577,1707756651098,-150.0,0.00035615,30]
[313865578,1707756651107,-150.0,0.00035615,30]
[313865579,1707756651116,-150.0,0.00035615,30]
[313865580,1707756651126,-150.0,0.00035615,30]
[313865581,1707756651135,-150.0,0.00035615,30]
[313865582,1707756651144,-150.0,0.00035615,30]
[313865583,1707756651153,-150.0,0.00035615,30]
[313865584,1707756651162,-150.0,0.00035615,30]
[313865585,1707756651172,-150.0,0.00035615,30]
[313865586,1707756651181,-150.0,0.00035615,30]
[313865587,1707756651191,-150.0,0.00035615,30]
[313865588,1707756651200,-150.0,0.00035615,30]
[313865589,1707756651210,-150.0,0.00035615,30]
[313865590,1707756651219,-150.0,0.00035615,30]
[313865591,1707756651229,-150.0,0.00035615,30]
[313865592,1707756651238,-150.0,0.00035615,30]
[313865593,1707756651247,-150.0,0.00035615,30]
[313865594,1707756651257,-150.0,0.00035615,30]
[313865595,1707756651267,-150.0,0.00035615,30]
[313865596,1707756651276,-150.0,0.00035615,30]
[313865597,1707756651285,-150.0,0.00035615,30]
[313865598,1707756651295,-150.0,0.00035615,30]
[313865599,1707756651306,-150.0,0.00035615,30]
[313865600,1707756651316,-150.0,0.00035615,30]
[313865601,1707756651326,-150.0,0.00035615,30]
[313865602,1707756651336,-150.0,0.00035615,30]
[313865603,1707756651346,-150.0,0.00035615,2]
[313865604,1707756651356,-150.0,0.00035615,2]
[313865605,1707756651366,-428.77389921,0.00035616,7]
[313865606,1707756651377,-44868.2692638,0.00035616,7]
[313865607,1707756651387,-276.76126785,0.00035616,7]
[313865608,1707756651397,-4340.34,0.00035616,3]
[313865609,1707756651408,-5800.0,0.00035616,2]
[313865610,1707756651419,-5800.0,0.00035616,2]
[313865611,1707756651429,-500.0,0.00035616,4]
[313865612,1707756651439,-500.0,0.00035616,2]
[313865613,1707756651450,-6612.06,0.00035616,2]
[313865614,1707756651461,-546.85,0.00035616,2]
[313865615,1707756651472,-431.7534371,0.00035676,2]
[313865616,1707756651482,-19910.4735232,0.00035676,2]
[313865617,1707756651493,-2280.6344111,0.00035676,2]
[313865618,1707756651504,-6725.4483628,0.00035676,2]
[313865619,1707756651515,-23826.6715885,0.00035676,2]
[313865620,1707756651525,-150.0,0.00035688,2]
[313865621,1707756651535,-206.0,0.00035689,17]
[313865622,1707756651545,-200.0,0.000357,9]
[313865623,1707756651559,-98005.34,0.000357,7]
[313865624,1707756651568,-47961.27,0.000357,7]
[313865625,1707756651578,-34236.53,0.000357,7]
[313865626,1707756651588,-151.0,0.000357,7]
[313865627,1707756651597,-151.0,0.000357,7]
[313865628,1707756651607,-151.0,0.000357,7]
[313865629,1707756651617,-151.0,0.000357,7]
[313865630,1707756651626,-180.765941,0.000357,7]
[313865631,1707756651636,-180.765941,0.000357,7]
[313865632,1707756651646,-151.0,0.000357,7]
[313865633,1707756651657,-290.214752,0.000357,7]
[313865634,1707756651667,-290.214752,0.000357,7]
[313865635,1707756651676,-476.32,0.000357,2]
[313865636,1707756651686,-153.95521056,0.00035762,2]
[313865637,1707756651696,-500.0,0.00035769,2]
[313865638,1707756651705,-151.0,0.00035775,7]
[313865639,1707756651715,-10000.0,0.00035798,2]
[313865640,1707756651724,-98005.34,0.000358,7]
[313865641,1707756651733,-47961.27,0.000358,7]
[313865642,1707756651743,-757.0,0.000358,33]
[313865643,1707756651753,-300.0,0.00035808,2]
[313865644,1707756651762,-1000.0,0.0003589,120]
[313865645,1707756651774,-157.39859715,0.00035899,30]
[313865646,1707756651785,-604.0,0.00035899,7]
[313865647,1707756651795,-47961.27,0.000359,7]
[313865648,1707756651808,-34236.53,0.000359,7]
[313865649,1707756651818,-1321.46,0.000359,7]
[313865650,1707756651827,-181.7849,0.000359,7]
[313865651,1707756651838,-214.238353,0.000359,7]
[313865652,1707756651853,-214.238353,0.000359,7]
[313865653,1707756651863,-151.0,0.000359,7]
[313865654,1707756651873,-151.0,0.000359,7]
[313865655,1707756651882,-151.0,0.000359,7]
[313865656,1707756651893,-415.737418,0.000359,7]
[313865657,1707756651903,-415.737418,0.000359,7]
[313865658,1707756651913,-216.186572,0.000359,7]
[313865659,1707756651923,-151.0,0.000359,7]
[313865660,1707756651932,-151.0,0.000359,7]
[313865661,1707756651942,-151.0,0.000359,7]
[313865662,1707756651952,-151.0,0.000359,7]
[313865663,1707756651963,-151.0,0.000359,7]
[313865664,1707756651973,-219.308008,0.000359,7]
[313865665,1707756651983,-1624.5,0.000359,7]
[313865666,1707756651993,-1624.5,0.000359,7]
[313865667,1707756652003,-347.317455,0.000359,7]
[313865668,1707756652013,-347.317455,0.000359,7]
[313865669,1707756652025,-237.612106,0.000359,7]
[313865670,1707756652041,-151.0,0.000359,7]
[313865671,1707756652054,-237.612106,0.000359,7]
[313865672,1707756652071,-246.073602,0.000359,7]
[313865673,1707756652081,-246.073602,0.000359,7]
[313865674,1707756652092,-338.348826,0.000359,7]
[313865675,1707756652102,-338.348826,0.000359,7]
[313865676,1707756652112,-151.0,0.000359,7]
[313865677,1707756652122,-599.54502,0.000359,7]
[313865678,1707756652132,-599.54502,0.000359,7]
[313865679,1707756652142,-151.0,0.000359,7]
[313865680,1707756652155,-458.5292568,0.0003591,5]
[313865681,1707756652165,-500.0,0.00035921,2]
[313865682,1707756652175,-150.0,0.00035999,2]
[313865683,1707756652186,-50000.0,0.00036,6]
[313865684,1707756652196,-2072.86,0.00036,2]
[313865685,1707756652205,-213.77283282,0.00036,4]
[313865686,1707756652215,-299.96147713,0.00036,4]
[313865687,1707756652225,-155.0,0.00036,4]
[313865688,1707756652234,-300.0,0.00036,37]
[313865689,1707756652245,-4053.656231,0.00036,2]
[313865690,1707756652255,-98005.34,0.00036,7]
[313865691,1707756652265,-47961.27,0.00036,7]
[313865692,1707756652275,-2169.90729292,0.00036,4]
[313865693,1707756652285,-11600.0,0.00036,3]
[313865694,1707756652295,-307.32623142,0.00036,10]
[313865695,1707756652306,-386.142924,0.00036,7]
[313865696,1707756652317,-386.142924,0.00036,7]
[313865697,1707756652327,-1406.683856,0.00036,7]
[313865698,1707756652337,-1406.683856,0.00036,7]
[313865699,1707756652347,-4342.01360013,0.00036024,2]
[313865700,1707756652358,-5000.9,0.00036025,2]
[313865701,1707756652368,-500.0,0.00036027,6]
[313865702,1707756652378,-500.0,0.00036073,2]
[313865703,1707756652388,-6879.00704832,0.00036074,2]
[313865704,1707756652398,-1000.0,0.00036096,10]
[313865705,1707756652407,-1000.0,0.00036096,10]
[313865706,1707756652417,-1000.0,0.00036096,10]
[313865707,1707756652430,-1000.0,0.00036096,10]
[313865708,1707756652440,-1000.0,0.00036096,10]
[313865709,1707756652450,-1000.0,0.00036096,10]
[313865710,1707756652460,-1000.0,0.00036096,10]
[313865711,1707756652471,-1000.0,0.00036096,10]
[313865712,1707756652482,-1000.0,0.00036096,10]
[313865713,1707756652492,-1000.0,0.00036096,10]
[313865714,1707756652502,-1000.0,0.00036096,10]
[313865715,1707756652513,-1000.0,0.00036096,10]
[313865716,1707756652523,-98005.34,0.000361,7]
[313865717,1707756652533,-47961.27,0.000361,7]
[313865718,1707756652543,-34236.53,0.000361,7]
[313865719,1707756652554,-151.0,0.000361,7]
[313865720,1707756652564,-290.214752,0.000361,7]
[313865721,1707756652574,-290.214752,0.000361,7]
[313865722,1707756652585,-153.95521056,0.00036107,2]
[313865723,1707756652595,-1000.0,0.00036164,15]
[313865724,1707756652605,-200.0,0.000362,11]
[313865725,1707756652615,-200.0,0.000362,9]
[313865726,1707756652625,-207.0,0.000362,2]
[313865727,1707756652634,-98005.34,0.000362,7]
[313865728,1707756652645,-47961.27,0.000362,7]
[313865729,1707756652654,-151.0,0.000362,7]
[313865730,1707756652664,-151.0,0.000362,7]
[313865731,1707756652674,-151.0,0.000362,7]
[313865732,1707756652684,-180.765941,0.000362,7]
[313865733,1707756652694,-180.765941,0.000362,7]
[313865734,1707756652704,-185.118896,0.000362,7]
[313865735,1707756652713,-151.0,0.000362,7]
[313865736,1707756652723,-500.0,0.00036225,2]
[313865737,1707756652733,-7018.28434674,0.0003625,9]
[313865738,1707756652743,-51546.9220268,0.00036275,2]
[313865739,1707756652754,-150.0,0.00036285,2]
[313865740,1707756652766,-150.0,0.00036285,2]
[313865741,1707756652776,-98005.34,0.000363,7]
[313865742,1707756652786,-47961.27,0.000363,7]
[313865743,1707756652795,-34236.53,0.000363,7]
[313865744,1707756652807,-1321.46,0.000363,7]
[313865745,1707756652817,-151.0,0.000363,7]
[313865746,1707756652827,-151.0,0.000363,7]
[313865747,1707756652837,-151.0,0.000363,7]
[313865748,1707756652848,-151.0,0.000363,7]
[313865749,1707756652858,-151.0,0.000363,7]
[313865750,1707756652868,-1624.5,0.000363,7]
[313865751,1707756652878,-1624.5,0.000363,7]
[313865752,1707756652888,-347.317455,0.000363,7]
[313865753,1707756652897,-237.612106,0.000363,7]
[313865754,1707756652907,-347.317455,0.000363,7]
[313865755,1707756652917,-151.0,0.000363,7]
[313865756,1707756652927,-237.612106,0.000363,7]
[313865757,1707756652938,-246.073602,0.000363,7]
[313865758,1707756652947,-246.073602,0.000363,7]
[313865759,1707756652957,-338.348826,0.000363,7]
[313865760,1707756652967,-338.348826,0.000363,7]
[313865761,1707756652977,-151.0,0.000363,7]
[313865762,1707756652987,-599.54502,0.000363,7]
[313865763,1707756652997,-599.54502,0.000363,7]
[313865764,1707756653007,-151.0,0.000363,7]
[313865765,1707756653017,-1158.70268382,0.00036301,30]
[313865766,1707756653027,-500.0,0.00036377,2]
[313865767,1707756653036,-206.59,0.00036384,2]
[313865768,1707756653046,-151.0,0.00036388,7]
[313865769,1707756653058,-151.0,0.00036388,7]
[313865770,1707756653068,-415.737418,0.00036388,7]
[313865771,1707756653078,-415.737418,0.00036388,7]
[313865772,1707756653088,-47961.27,0.000364,7]
[313865773,1707756653098,-214.238353,0.000364,7]
[313865774,1707756653108,-214.238353,0.000364,7]
[313865775,1707756653118,-151.0,0.000364,7]
[313865776,1707756653128,-152.0,0.00036417,6]
[313865777,1707756653138,-500.0,0.00036438,8]
[313865778,1707756653148,-153.95521056,0.00036451,2]
[313865779,1707756653158,-2372.45273664,0.0003647,26]
[313865780,1707756653168,-150.0,0.00036482,2]
[313865781,1707756653179,-47961.27,0.000365,7]
[313865782,1707756653188,-34236.53,0.000365,7]